lending/lending_fUSD_20250516
["ID","MTS","AMOUNT","RATE_DAILY","PERIOD"]
[361251906,1747393838888,-400.0,0.00016438,2]
[361251908,1747393838898,-513.73,0.00016438,2]
[361251910,1747393838907,-400.0,0.00016438,2]
[361251912,1747393838917,-945.23,0.00016438,2]
[361251913,1747393838928,-439.67,0.00016438,2]
[361251914,1747393838939,-400.0,0.00016438,2]
[361251915,1747393838950,-400.0,0.00016438,2]
[361251916,1747393838959,-400.0,0.00016438,2]
[361251917,1747393838969,-400.0,0.00016438,2]
[361251918,1747393838978,-400.0,0.00016438,2]
[361251919,1747393838987,-400.0,0.00016438,2]
[361251920,1747393838997,-400.0,0.00016438,2]
[361251921,1747393839006,-400.0,0.00016438,2]
[361251922,1747393839016,-400.0,0.00016438,2]
[361251923,1747393839025,-511.86,0.00016438,2]
[361251924,1747393839036,-400.0,0.00016438,2]
[361251925,1747393839046,-828.89,0.00016438,2]
[361251926,1747393839055,-400.0,0.00016438,2]
[361251927,1747393839065,-400.0,0.00016438,2]
[361251928,1747393839074,-400.0,0.00016438,2]
[361251929,1747393839084,-524.37,0.00016438,2]
[361251930,1747393839093,-400.0,0.00016438,2]
[361251931,1747393839102,-400.0,0.00016438,2]
[361251932,1747393839111,-400.0,0.00016438,2]
[361251933,1747393839214,-400.0,0.00016438,2]
[361251934,1747393839224,-607.33,0.00016438,2]
[361251935,1747393839233,-400.0,0.00016438,2]
[361251936,1747393839243,-472.46,0.00016438,2]
[361251937,1747393839253,-400.0,0.00016438,2]
[361251938,1747393839262,-400.0,0.00016438,2]
[361251939,1747393839272,-400.0,0.00016438,2]
[361251940,1747393839281,-400.0,0.00016438,2]
[361251941,1747393839290,-973.72,0.00016438,2]
[361251942,1747393839299,-476.87,0.00016438,2]
[361251943,1747393839308,-400.0,0.00016438,2]
[361251944,1747393839318,-400.0,0.00016438,2]
[361251945,1747393839328,-400.0,0.00016438,2]
[361251946,1747393839337,-400.0,0.00016438,2]
[361251947,1747393839347,-400.0,0.00016438,2]
[361251948,1747393839356,-437.35106276,0.00016438,2]
[361251949,1747393839367,-400.0,0.00016438,2]
[361251950,1747393839381,-400.0,0.00016438,2]
[361251951,1747393839390,-400.0,0.00016438,2]
[361251952,1747393839399,-400.0,0.00016438,2]
[361251953,1747393839409,-400.0,0.00016438,2]
[361251954,1747393839419,-400.0,0.00016438,2]
[361251955,1747393839430,-400.0,0.00016438,2]
[361251956,1747393839439,-807.97,0.00016438,2]
[361251957,1747393839448,-400.0,0.00016438,2]
[361251958,1747393839457,-400.0,0.00016438,2]
[361251959,1747393839466,-400.0,0.00016438,2]
[361251960,1747393839475,-400.0,0.00016438,2]
[361251961,1747393839484,-400.0,0.00016438,2]
[361251962,1747393839493,-400.0,0.00016438,2]
[361251963,1747393839502,-321.4,0.00016438,2]
[361251964,1747393839511,-400.0,0.00016438,2]
[361251965,1747393839521,-545.64,0.00016438,2]
[361251966,1747393839531,-400.0,0.00016438,2]
[361251967,1747393839540,-168.63140791,0.00016438,2]
[361251968,1747393839549,-1413.88,0.00016438,2]
[361251969,1747393839559,-1382.68,0.00016438,2]
[361251970,1747393839569,-400.0,0.00016438,2]
[361251971,1747393839578,-833.95,0.00016438,2]
[361251972,1747393839587,-400.0,0.00016438,2]
[361251973,1747393839596,-515.08,0.00016438,2]
[361251974,1747393839610,-400.0,0.00016438,2]
[361251975,1747393839620,-400.0,0.00016438,2]
[361251976,1747393839629,-400.0,0.00016438,2]
[361251977,1747393839638,-211.78291354,0.00016438,2]
[361251978,1747393839647,-400.0,0.00016438,2]
[361251979,1747393839656,-400.0,0.00016438,2]
[361251980,1747393839665,-400.0,0.00016438,2]
[361251981,1747393839675,-400.0,0.00016438,2]
[361251982,1747393839688,-400.0,0.00016438,2]
[361251983,1747393839699,-400.0,0.00016438,2]
[361251984,1747393839708,-2396.52,0.00016438,2]
[361251985,1747393839718,-400.0,0.00016438,2]
[361251986,1747393839728,-1703.92,0.00016438,2]
[361251987,1747393839739,-847.48,0.00016438,2]
[361251988,1747393839748,-1688.51,0.00016438,2]
[361251989,1747393839759,-400.0,0.00016438,2]
[361251990,1747393839768,-400.0,0.00016438,2]
[361251991,1747393839778,-1103.92,0.00016438,2]
[361251992,1747393839787,-400.0,0.00016438,2]
[361251993,1747393839796,-151.0,0.00016438,2]
[361251994,1747393839805,-985.55,0.00016438,2]
[361251995,1747393839815,-714.06,0.00016438,2]
[361251996,1747393839825,-499.52,0.00016438,2]
[361251997,1747393839836,-460.96,0.00016438,2]
[361251998,1747393839846,-400.0,0.00016438,2]
[361251999,1747393839855,-409.90719049,0.00016438,2]
[361252000,1747393839865,-290.45613714,0.00016438,2]
[361252001,1747393839876,-400.0,0.00016438,2]
[361252002,1747393839886,-420.79556864,0.00016438,2]
[361252003,1747393839895,-400.0,0.00016438,2]
[361252004,1747393839905,-498.53,0.00016438,2]
[361252005,1747393839915,-400.0,0.00016438,2]
[361252006,1747393839924,-400.0,0.00016438,2]
[361252007,1747393839933,-400.0,0.00016438,2]
[361252008,1747393839943,-545.3,0.00016438,2]
[361252009,1747393839952,-400.0,0.00016438,2]
[361252010,1747393839962,-437.83,0.00016438,2]
[361252011,1747393839971,-492.29080574,0.00016438,2]
[361252012,1747393839980,-400.0,0.00016438,2]
[361252013,1747393839990,-400.0,0.00016438,2]
[361252014,1747393839999,-426.62,0.00016438,2]
[361252015,1747393840009,-400.0,0.00016438,2]
[361252016,1747393840018,-957.34,0.00016438,2]
[361252017,1747393840027,-524.66005296,0.00016438,2]
[361252018,1747393840036,-400.0,0.00016438,2]
[361252019,1747393840046,-2198.4,0.00016438,2]
[361252020,1747393840055,-400.0,0.00016438,2]
[361252021,1747393840064,-400.0,0.00016438,2]
[361252022,1747393840074,-400.0,0.00016438,2]
[361252023,1747393840084,-493.36,0.00016438,2]
[361252024,1747393840093,-400.0,0.00016438,2]
[361252025,1747393840104,-878.78,0.00016438,2]
[361252026,1747393840114,-400.0,0.00016438,2]
[361252027,1747393840124,-400.0,0.00016438,2]
[361252028,1747393840134,-400.0,0.00016438,2]
[361252030,1747393840144,-400.0,0.00016438,2]
[361252032,1747393840154,-1704.97,0.00016438,2]
[361252034,1747393840164,-400.0,0.00016438,2]
[361252036,1747393840174,-1239.95,0.00016438,2]
[361252038,1747393840184,-1324.65,0.00016438,2]
[361252040,1747393840194,-400.0,0.00016438,2]
[361252042,1747393840204,-400.0,0.00016438,2]
[361252045,1747393840214,-201.83141036,0.00016438,2]
[361252048,1747393840224,-400.0,0.00016438,2]
[361252050,1747393840234,-687.69,0.00016438,2]
[361252052,1747393840243,-400.0,0.00016438,2]
[361252053,1747393840253,-400.0,0.00016438,2]
[361252055,1747393840262,-400.0,0.00016438,2]
[361252057,1747393840272,-151.0,0.00016438,2]
[361252059,1747393840283,-959.41,0.00016438,2]
[361252061,1747393840292,-400.0,0.00016438,2]
[361252063,1747393840302,-400.0,0.00016438,2]
[361252064,1747393840311,-400.0,0.00016438,2]
[361252066,1747393840322,-400.0,0.00016438,2]
[361252068,1747393840331,-1595.41,0.00016438,2]
[361252070,1747393840341,-400.0,0.00016438,2]
[361252072,1747393840351,-400.0,0.00016438,2]
[361252074,1747393840360,-400.0,0.00016438,2]
[361252076,1747393840369,-400.0,0.00016438,2]
[361252078,1747393840379,-640.03,0.00016438,2]
[361252080,1747393840388,-400.0,0.00016438,2]
[361252081,1747393840398,-400.0,0.00016438,2]
[361252083,1747393840408,-828.38,0.00016438,2]
[361252085,1747393840417,-400.0,0.00016438,2]
[361252087,1747393840427,-473.14,0.00016438,2]
[361252089,1747393840437,-499.76,0.00016438,2]
[361252091,1747393840446,-673.46,0.00016438,2]
[361252093,1747393840456,-400.0,0.00016438,2]
[361252095,1747393840466,-991.67,0.00016438,2]
[361252097,1747393840475,-2168.65,0.00016438,2]
[361252099,1747393840485,-400.0,0.00016438,2]
[361252101,1747393840494,-737.34,0.00016438,2]
[361252103,1747393840505,-542.86,0.00016438,2]
[361252105,1747393840515,-466.12,0.00016438,2]
[361252107,1747393840525,-400.0,0.00016438,2]
[361252109,1747393840535,-400.0,0.00016438,2]
[361252110,1747393840545,-400.0,0.00016438,2]
[361252112,1747393840555,-400.0,0.00016438,2]
[361252114,1747393840565,-400.0,0.00016438,2]
[361252116,1747393840574,-400.0,0.00016438,2]
[361252118,1747393840584,-400.0,0.00016438,2]
[361252120,1747393840594,-400.0,0.00016438,2]
[361252122,1747393840611,-605.84,0.00016438,2]
[361252124,1747393840620,-732.42,0.00016438,2]
[361252126,1747393840629,-400.0,0.00016438,2]
[361252128,1747393840640,-400.23,0.00016438,2]
[361252130,1747393840649,-400.0,0.00016438,2]
[361252132,1747393840659,-400.0,0.00016438,2]
[361252134,1747393840668,-400.0,0.00016438,2]
[361252136,1747393840677,-400.0,0.00016438,2]
[361252138,1747393840687,-400.0,0.00016438,2]
[361252140,1747393840696,-1331.01,0.00016438,2]
[361252141,1747393840706,-400.0,0.00016438,2]
[361252143,1747393840715,-400.0,0.00016438,2]
[361252145,1747393840725,-1305.89,0.00016438,2]
[361252147,1747393840735,-440.47,0.00016438,2]
[361252149,1747393840745,-400.0,0.00016438,2]
[361252151,1747393840755,-400.0,0.00016438,2]
[361252153,1747393840765,-400.0,0.00016438,2]
[361252155,1747393840774,-400.0,0.00016438,2]
[361252157,1747393840785,-501.84,0.00016438,2]
[361252159,1747393840794,-400.0,0.00016438,2]
[361252161,1747393840805,-752.3,0.00016438,2]
[361252163,1747393840814,-400.0,0.00016438,2]
[361252165,1747393840824,-720.79,0.00016438,2]
[361252167,1747393840834,-151.0,0.00016438,2]
[361252169,1747393840844,-400.0,0.00016438,2]
[361252171,1747393840853,-658.24,0.00016438,2]
[361252173,1747393840863,-400.0,0.00016438,2]
[361252175,1747393840872,-400.0,0.00016438,2]
[361252177,1747393840881,-400.0,0.00016438,2]
[361252179,1747393840891,-400.0,0.00016438,2]
[361252181,1747393840900,-1313.29,0.00016438,2]
[361252183,1747393840909,-400.0,0.00016438,2]
[361252185,1747393840918,-400.0,0.00016438,2]
[361252187,1747393840928,-508.89,0.00016438,2]
[361252189,1747393840938,-2237.02,0.00016438,2]
[361252190,1747393840948,-400.0,0.00016438,2]
[361252192,1747393840957,-400.0,0.00016438,2]
[361252194,1747393840966,-400.0,0.00016438,2]
[361252196,1747393840976,-1493.57,0.00016438,2]
[361252198,1747393840985,-400.0,0.00016438,2]
[361252200,1747393840995,-405.71,0.00016438,2]
[361252202,1747393841004,-400.0,0.00016438,2]
[361252204,1747393841016,-400.0,0.00016438,2]
[361252206,1747393841025,-194.194317,0.00016438,2]
[361252208,1747393841034,-519.31747661,0.00016438,2]
[361252210,1747393841044,-400.0,0.00016438,2]
[361252212,1747393841053,-400.0,0.00016438,2]
[361252214,1747393841062,-400.0,0.00016438,2]
[361252215,1747393841072,-400.0,0.00016438,2]
[361252216,1747393841081,-400.0,0.00016438,2]
[361252217,1747393841091,-194.194317,0.00016438,2]
[361252218,1747393841100,-673.39,0.00016438,2]
[361252219,1747393841111,-400.0,0.00016438,2]
[361252220,1747393841120,-616.39,0.00016438,2]
[361252222,1747393841130,-837.44,0.00016438,2]
[361252224,1747393841140,-950.55,0.00016438,2]
[361252226,1747393841150,-400.0,0.00016438,2]
[361252228,1747393841159,-425.13,0.00016438,2]
[361252230,1747393841169,-1219.19,0.00016438,2]
[361252232,1747393841179,-814.28,0.00016438,2]
[361252234,1747393841188,-381.3518988,0.00016438,2]
[361252236,1747393841198,-400.0,0.00016438,2]
[361252238,1747393841207,-400.0,0.00016438,2]
[361252240,1747393841217,-400.0,0.00016438,2]
[361252242,1747393841226,-793.19,0.00016438,2]
[361252244,1747393841235,-400.0,0.00016438,2]
[361252246,1747393841244,-511.91,0.00016438,2]
[361252248,1747393841254,-400.0,0.00016438,2]
[361252250,1747393841263,-400.0,0.00016438,2]
[361252251,1747393841272,-543.68,0.00016438,2]
[361252253,1747393841281,-1064.02,0.00016438,2]
[361252255,1747393841291,-400.0,0.00016438,2]
[361252257,1747393841301,-598.04,0.00016438,2]
[361252259,1747393841310,-400.0,0.00016438,2]
[361252261,1747393841319,-400.0,0.00016438,2]
[361252263,1747393841328,-400.0,0.00016438,2]
[361252265,1747393841338,-400.0,0.00016438,2]
[361252267,1747393841347,-400.0,0.00016438,2]
[361252269,1747393841357,-400.0,0.00016438,2]
[361252271,1747393841367,-400.0,0.00016438,2]
[361252273,1747393841378,-1011.29,0.00016438,2]
[361252275,1747393841388,-400.0,0.00016438,2]
[361252277,1747393841398,-400.0,0.00016438,2]
[361252279,1747393841409,-866.55,0.00016438,2]
[361252282,1747393841419,-400.0,0.00016438,2]
[361252284,1747393841429,-400.0,0.00016438,2]
[361252286,1747393841439,-400.0,0.00016438,2]
[361252288,1747393841448,-400.0,0.00016438,2]
[361252290,1747393841458,-400.0,0.00016438,2]
[361252291,1747393841468,-400.0,0.00016438,2]
[361252293,1747393841477,-547.1,0.00016438,2]
[361252295,1747393841486,-400.0,0.00016438,2]
[361252297,1747393841495,-400.0,0.00016438,2]
[361252299,1747393841504,-400.0,0.00016438,2]
[361252301,1747393841514,-400.0,0.00016438,2]
[361252303,1747393841523,-400.0,0.00016438,2]
[361252305,1747393841532,-400.0,0.00016438,2]
[361252307,1747393841542,-400.0,0.00016438,2]
[361252309,1747393841552,-400.0,0.00016438,2]
[361252311,1747393841561,-515.31,0.00016438,2]
[361252313,1747393841570,-400.0,0.00016438,2]
[361252315,1747393841580,-400.0,0.00016438,2]
[361252317,1747393841590,-400.0,0.00016438,2]
[361252318,1747393841600,-400.0,0.00016438,2]
[361252319,1747393841611,-400.0,0.00016438,2]
[361252320,1747393841621,-445.2,0.00016438,2]
[361252321,1747393841630,-400.0,0.00016438,2]
[361252322,1747393841640,-541.22,0.00016438,2]
[361252323,1747393841650,-400.0,0.00016438,2]
[361252324,1747393841659,-400.0,0.00016438,2]
[361252325,1747393841669,-400.0,0.00016438,2]
[361252326,1747393841680,-400.0,0.00016438,2]
[361252327,1747393841689,-400.0,0.00016438,2]
[361252328,1747393841699,-529.11,0.00016438,2]
[361252329,1747393841709,-267.7989638,0.00016438,2]
[361252330,1747393841719,-400.0,0.00016438,2]
[361252331,1747393841728,-400.0,0.00016438,2]
[361252332,1747393841738,-400.0,0.00016438,2]
[361252333,1747393841747,-400.0,0.00016438,2]
[361252334,1747393841757,-1496.53,0.00016438,2]
[361252335,1747393841766,-400.0,0.00016438,2]
[361252336,1747393841776,-400.0,0.00016438,2]
[361252337,1747393841786,-400.0,0.00016438,2]
[361252338,1747393841796,-965.1,0.00016438,2]
[361252339,1747393841805,-461.2629445,0.00016438,2]
[361252340,1747393841815,-400.67910905,0.00016438,2]
[361252341,1747393841824,-400.0,0.00016438,2]
[361252342,1747393841834,-400.0,0.00016438,2]
[361252343,1747393841843,-400.0,0.00016438,2]
[361252344,1747393841853,-400.0,0.00016438,2]
[361252345,1747393841863,-400.0,0.00016438,2]
[361252346,1747393841872,-400.0,0.00016438,2]
[361252347,1747393841882,-400.0,0.00016438,2]
[361252348,1747393841891,-400.0,0.00016438,2]
[361252349,1747393841901,-400.0,0.00016438,2]
[361252350,1747393841910,-400.0,0.00016438,2]
[361252351,1747393841920,-517.30117406,0.00016438,2]
[361252352,1747393841931,-911.5,0.00016438,2]
[361252353,1747393841941,-906.69,0.00016438,2]
[361252354,1747393841951,-400.0,0.00016438,2]
[361252355,1747393841960,-400.0,0.00016438,2]
[361252356,1747393841970,-400.0,0.00016438,2]
[361252357,1747393841979,-400.0,0.00016438,2]
[361252358,1747393841989,-545.32,0.00016438,2]
[361252359,1747393841999,-400.0,0.00016438,2]
[361252360,1747393842008,-400.0,0.00016438,2]
[361252361,1747393842017,-400.0,0.00016438,2]
[361252362,1747393842027,-1026.33,0.00016438,2]
[361252363,1747393842037,-400.0,0.00016438,2]
[361252364,1747393842049,-400.0,0.00016438,2]
[361252365,1747393842059,-400.0,0.00016438,2]
[361252366,1747393842070,-400.0,0.00016438,2]
[361252367,1747393842080,-613.61,0.00016438,2]
[361252368,1747393842090,-400.0,0.00016438,2]
[361252369,1747393842100,-2232.22,0.00016438,2]
[361252370,1747393842110,-474.02,0.00016438,2]
[361252371,1747393842119,-413.01668516,0.00016438,2]
[361252372,1747393842128,-400.0,0.00016438,2]
[361252373,1747393842138,-409.67,0.00016438,2]
[361252374,1747393842148,-997.33,0.00016438,2]
[361252375,1747393842158,-400.0,0.00016438,2]
[361252376,1747393842167,-400.0,0.00016438,2]
[361252377,1747393842177,-1134.23,0.00016438,2]
[361252378,1747393842186,-400.0,0.00016438,2]
[361252379,1747393842196,-400.0,0.00016438,2]
[361252380,1747393842206,-400.0,0.00016438,2]
[361252381,1747393842216,-400.0,0.00016438,2]
[361252382,1747393842225,-400.0,0.00016438,2]
[361252383,1747393842235,-2039.86,0.00016438,2]
[361252384,1747393842245,-400.0,0.00016438,2]
[361252385,1747393842254,-400.0,0.00016438,2]
[361252386,1747393842264,-400.0,0.00016438,2]
[361252387,1747393842274,-6839.44,0.00016438,2]
[361252388,1747393842283,-400.0,0.00016438,2]
[361252389,1747393842295,-400.0,0.00016438,2]
[361252390,1747393842304,-717.05,0.00016438,2]
[361252391,1747393842314,-500.0,0.00016438,2]
[361252392,1747393842324,-1822.49,0.00016438,2]
[361252393,1747393842333,-400.0,0.00016438,2]
[361252394,1747393842343,-400.0,0.00016438,2]
[361252395,1747393842353,-400.0,0.00016438,2]
[361252396,1747393842362,-151.0,0.00016438,2]
[361252397,1747393842371,-400.0,0.00016438,2]
[361252398,1747393842382,-400.0,0.00016438,2]
[361252399,1747393842395,-400.0,0.00016438,2]
[361252400,1747393842404,-400.0,0.00016438,2]
[361252401,1747393842414,-400.0,0.00016438,2]
[361252402,1747393842424,-400.0,0.00016438,2]
[361252403,1747393842433,-417.3,0.00016438,2]
[361252404,1747393842443,-2198.86,0.00016438,2]
[361252405,1747393842452,-400.0,0.00016438,2]
[361252406,1747393842462,-713.21,0.00016438,2]
[361252407,1747393842472,-410.89,0.00016438,2]
[361252408,1747393842481,-400.0,0.00016438,2]
[361252409,1747393842491,-500.0,0.00016438,2]
[361252410,1747393842500,-604.18,0.00016438,2]
[361252411,1747393842509,-400.0,0.00016438,2]
[361252412,1747393842520,-1616.34,0.00016438,2]
[361252413,1747393842529,-471.81,0.00016438,2]
[361252414,1747393842539,-400.0,0.00016438,2]
[361252415,1747393842550,-411.53027749,0.00016438,2]
[361252416,1747393842559,-400.0,0.00016438,2]
[361252417,1747393842569,-400.0,0.00016438,2]
[361252418,1747393842579,-400.0,0.00016438,2]
[361252419,1747393842588,-1070.79,0.00016438,2]
[361252420,1747393842597,-400.0,0.00016438,2]
[361252421,1747393842607,-400.0,0.00016438,2]
[361252422,1747393842618,-400.0,0.00016438,2]
[361252423,1747393842628,-168.9537578,0.00016438,2]
[361252424,1747393842637,-500.0,0.00016438,2]
[361252425,1747393842647,-300.0,0.00016438,2]
[361252426,1747393842656,-995.22,0.00016438,2]
[361252427,1747393842666,-400.0,0.00016438,2]
[361252428,1747393842675,-1051.85,0.00016438,2]
[361252429,1747393842684,-677.54,0.00016438,2]
[361252430,1747393842695,-1010.62,0.00016438,2]
[361252431,1747393842705,-151.0,0.00016438,2]
[361252432,1747393842714,-400.0,0.00016438,2]
[361252433,1747393842724,-503.02973575,0.00016438,2]
[361252434,1747393842734,-400.0,0.00016438,2]
[361252435,1747393842743,-400.0,0.00016438,2]
[361252436,1747393842752,-400.0,0.00016438,2]
[361252437,1747393842762,-636.78,0.00016438,2]
[361252438,1747393842771,-323.0616739,0.00016438,2]
[361252439,1747393842780,-400.0,0.00016438,2]
[361252440,1747393842790,-227.119869,0.00016438,2]
[361252441,1747393842800,-400.0,0.00016438,2]
[361252442,1747393842809,-1263.92,0.00016438,2]
[361252443,1747393842818,-400.0,0.00016438,2]
[361252444,1747393842828,-736.59,0.00016438,2]
[361252445,1747393842837,-400.0,0.00016438,2]
[361252446,1747393842847,-634.45,0.00016438,2]
[361252447,1747393842855,-400.0,0.00016438,2]
[361252448,1747393842865,-1350.56,0.00016438,2]
[361252449,1747393842875,-400.0,0.00016438,2]
[361252450,1747393842884,-400.0,0.00016438,2]
[361252451,1747393842894,-400.0,0.00016438,2]
[361252452,1747393842903,-400.0,0.00016438,2]
[361252453,1747393842912,-2096.76,0.00016438,2]
[361252454,1747393842922,-925.99,0.00016438,2]
[361252455,1747393842931,-400.0,0.00016438,2]
[361252456,1747393842941,-400.0,0.00016438,2]
[361252457,1747393842950,-3832.03,0.00016438,2]
[361252458,1747393842960,-749.08,0.00016438,2]
[361252459,1747393842969,-400.0,0.00016438,2]
[361252461,1747393842979,-1312.13,0.00016438,2]
[361252462,1747393842988,-400.0,0.00016438,2]
[361252463,1747393842998,-400.0,0.00016438,2]
[361252464,1747393843008,-400.0,0.00016438,2]
[361252465,1747393843017,-6389.38,0.00016438,2]
[361252466,1747393843026,-400.0,0.00016438,2]
[361252467,1747393843036,-533.46,0.00016438,2]
[361252468,1747393843045,-31522.913619,0.00016438,2]
[361252469,1747393843054,-400.0,0.00016438,2]
[361252470,1747393843064,-4341.61227,0.00016438,2]
[361252471,1747393843073,-7058.28,0.00016438,2]
[361252472,1747393843083,-400.0,0.00016438,2]
[361252474,1747393843092,-8218.59,0.00016438,2]
[361252475,1747393843101,-558.07,0.00016438,2]
[361252476,1747393843110,-400.0,0.00016438,2]
[361252477,1747393843120,-690.87,0.00016438,2]
[361252478,1747393843129,-793.07,0.00016438,2]
[361252479,1747393843138,-400.0,0.00016438,2]
[361252480,1747393843148,-1593.82,0.00016438,2]
[361252481,1747393843157,-400.0,0.00016438,2]
[361252482,1747393843167,-500.0,0.00016438,2]
[361252483,1747393843176,-500.0,0.00016438,2]
[361252484,1747393843185,-15747.45,0.00016438,2]
[361252485,1747393843195,-500.0,0.00016438,2]
[361252486,1747393843205,-500.0,0.00016438,2]
[361252487,1747393843214,-1566.67,0.00016438,2]
[361252488,1747393843224,-400.0,0.00016438,2]
[361252489,1747393843233,-547.97,0.00016438,2]
[361252490,1747393843242,-500.0,0.00016438,2]
[361252491,1747393843251,-400.0,0.00016438,2]
[361252492,1747393843261,-400.0,0.00016438,2]
[361252493,1747393843270,-400.0,0.00016438,2]
[361252494,1747393843280,-400.0,0.00016438,2]
[361252495,1747393843289,-400.0,0.00016438,2]
[361252496,1747393843299,-670.63,0.00016438,2]
[361252497,1747393843308,-400.0,0.00016438,2]
[361252498,1747393843318,-400.0,0.00016438,2]
[361252500,1747393843447,-2054.78,0.00016438,2]
[361252501,1747393843457,-400.0,0.00016438,2]
[361252502,1747393843467,-400.0,0.00016438,2]
[361252503,1747393843477,-1107.64,0.00016438,2]
[361252504,1747393843487,-761.49,0.00016438,2]
[361252505,1747393843496,-400.0,0.00016438,2]
[361252506,1747393843506,-400.0,0.00016438,2]
[361252507,1747393843516,-8646.93,0.00016438,2]
[361252508,1747393843526,-591.6,0.00016438,2]
[361252509,1747393843535,-400.0,0.00016438,2]
[361252510,1747393843546,-400.0,0.00016438,2]
[361252511,1747393843556,-1234.87,0.00016438,2]
[361252512,1747393843566,-6571.31,0.00016438,2]
[361252513,1747393843577,-151.0,0.00016438,2]
[361252514,1747393843588,-2821.41,0.00016438,2]
[361252515,1747393843598,-400.0,0.00016438,2]
[361252516,1747393843607,-614.79,0.00016438,2]
[361252517,1747393843622,-500.0,0.00016438,2]
[361252518,1747393843633,-1000.0,0.00016438,2]
[361252519,1747393843643,-500.0,0.00016438,2]
[361252520,1747393843654,-1585.7,0.00016438,2]
[361252521,1747393843663,-1438.47,0.00016438,2]
[361252522,1747393843672,-400.0,0.00016438,2]
[361252523,1747393843681,-400.0,0.00016438,2]
[361252524,1747393843691,-710.92,0.00016438,2]
[361252525,1747393843700,-400.0,0.00016438,2]
[361252526,1747393843711,-601.87,0.00016438,2]
[361252528,1747393843720,-503.34942368,0.00016438,2]
[361252530,1747393843730,-2308.31,0.00016438,2]
[361252532,1747393843739,-400.0,0.00016438,2]
[361252533,1747393843749,-576.11,0.00016438,2]
[361252534,1747393843758,-400.0,0.00016438,2]
[361252535,1747393843768,-400.0,0.00016438,2]
[361252536,1747393843777,-400.0,0.00016438,2]
[361252537,1747393843787,-1880.44,0.00016438,2]
[361252538,1747393843796,-846.06,0.00016438,2]
[361252539,1747393843806,-400.0,0.00016438,2]
[361252540,1747393843815,-467.83,0.00016438,2]
[361252541,1747393843825,-1051.2,0.00016438,2]
[361252543,1747393843834,-400.0,0.00016438,2]
[361252544,1747393843844,-400.0,0.00016438,2]
[361252546,1747393843854,-400.0,0.00016438,2]
[361252548,1747393843863,-1478.73,0.00016438,2]
[361252549,1747393843873,-1332.18,0.00016438,2]
[361252551,1747393843883,-438.03,0.00016438,2]
[361252553,1747393843893,-667.86,0.00016438,2]
[361252554,1747393843903,-400.0,0.00016438,2]
[361252556,1747393843912,-7856.8,0.00016438,2]
[361252558,1747393843922,-497.59,0.00016438,2]
[361252560,1747393843931,-1054.81,0.00016438,2]
[361252562,1747393843940,-400.0,0.00016438,2]